bitfinex-derivatives/quotes_ETHF0:USTF0_20250626
["timestamp","ask_amount","ask_price","bid_price","bid_amount"]
[1750972868813,3.2078,2425.9,2425.7,0.82422]
[1750972869212,4.03195,2425.9,2425.6,0.82423]
[1750972869621,4.03195,2425.9,2425.3,9.8554]
[1750972869819,4.03195,2425.9,2425.6,0.82424]
[1750972870020,3.2078,2425.9,2425.7,0.82421]
[1750972870317,4.03195,2425.9,2425.6,0.82423]
[1750972870620,3.2078,2425.9,2425.7,0.82421]
[1750972870820,3.2078,2426.6,2425.8,7.761]
[1750972871118,3.2078,2426.6,2426.5,0.82395]
[1750972871419,3.2078,2426.6,2426.4,0.82395]
[1750972871621,3.2078,2426.6,2426.1,2.0397]
[1750972871811,3.2078,2426.6,2426.4,0.82395]
[1750972872012,4.03171,2426.6,2426.3,0.824]
[1750972872213,0.82395,2426.5,2426.1,0.67]
[1750972872414,3.2078,2426.6,2426.5,0.82395]
[1750972873420,3.9068,2427.3,2426.5,5.82395]
[1750972873637,3.2078,2427.0,2426.7,0.82386]
[1750972873921,3.2078,2427.0,2426.8,1.3697]
[1750972874312,0.82386,2426.8,2426.4,7.761]
[1750972874524,0.82386,2426.8,2426.4,9.1307]
[1750972874825,3.2078,2426.7,2426.5,0.82393]
[1750972875123,3.2078,2426.7,2426.5,1.471]
[1750972875322,0.82391,2426.6,2426.5,1.471]
[1750972875519,4.0317,2426.7,2426.5,1.471]
[1750972875714,0.82391,2426.6,2426.5,1.471]
[1750972876114,0.82398,2426.4,2426.3,3.2078]
[1750972878421,0.82406,2426.2,2426.0,8.5851]
[1750972879428,0.8241,2426.1,2425.9,10.05613]
[1750972879928,0.8241,2426.1,2426.0,0.82412]
[1750972880123,0.8241,2426.1,2426.0,2.23812]
[1750972880319,0.8241,2426.1,2426.0,1.414]
[1750972885922,0.8241,2426.1,2426.0,2.23811]
[1750972886429,0.8241,2426.1,2426.0,1.414]
[1750972887227,0.8241,2426.1,2425.2,5.34055377]
[1750972887228,2.06029,2426.0,2425.5,7.762]
[1750972887532,0.8243,2425.5,2425.4,8.5863]
[1750972887836,0.8243,2425.5,2425.4,1.4516]
[1750972888021,0.8243,2425.5,2425.2,0.6631]
[1750972888022,0.82434,2425.4,2425.2,28.66345]
[1750972888228,0.82429,2425.5,2425.3,7.762]
[1750972888427,0.82432,2425.4,2425.3,7.762]
[1750972888627,0.82431,2425.5,2425.3,10.03793]
[1750972888830,0.82431,2425.5,2425.4,0.82432]
[1750972889034,0.82431,2425.5,2425.3,10.03793]
[1750972889235,0.82431,2425.5,2425.1,50.1434]
[1750972889236,3.2078,2425.5,2425.1,50.1434]
[1750972889430,0.82438,2425.3,2425.2,7.762]
[1750972889630,0.82432,2425.4,2425.2,8.58636]
[1750972889937,0.82434,2425.4,2425.2,0.82439]
[1750972890137,3.2078,2425.5,2425.3,1.3335]
[1750972890434,0.82432,2425.4,2425.3,2.15785]
[1750972890636,0.82432,2425.4,2425.3,1.3335]
[1750972890831,0.82439,2425.2,2425.1,8.58641]
[1750972891030,0.82439,2425.2,2425.1,7.762]
[1750972891227,5.26856,2425.5,2425.0,7.762]
[1750972891436,0.82441,2425.2,2425.0,8.58643]
[1750972891735,0.82442,2425.1,2425.0,8.58643]
[1750972892235,0.82442,2425.1,2425.0,8.51443]
[1750972892637,0.82445,2425.0,2424.9,2.15797]
[1750972892841,0.82444,2425.1,2424.9,34.855]
[1750972893038,0.82444,2425.1,2424.9,35.67947]
[1750972893335,3.2078,2425.2,2424.9,34.851]
[1750972893536,4.0322,2425.2,2424.9,34.851]
[1750972893738,0.82442,2425.1,2425.0,1.3733]
[1750972894245,3.2078,2425.2,2424.8,36.33461]
[1750972894445,3.2078,2424.9,2424.5,0.8246]
[1750972894733,0.82454,2424.8,2424.7,0.82455]
[1750972894946,3.2078,2424.9,2424.5,1.3733]
[1750972895343,4.0323,2424.9,2424.5,1.3733]
[1750972895539,0.82452,2424.8,2424.5,1.3733]
[1750972895743,0.82452,2424.8,2424.6,0.82457]
[1750972896152,3.2078,2424.9,2424.5,1.3733]
[1750972896448,0.82455,2424.8,2424.6,0.82457]
[1750972896654,3.2078,2424.9,2424.5,1.3733]
[1750972896946,0.82462,2424.6,2424.4,35.66465]
[1750972897152,3.2078,2424.6,2424.0,3.2078]
[1750972897347,0.82486,2423.8,2423.7,1.3323]
[1750972897541,3.2078,2424.1,2423.7,1.3323]
[1750972897849,3.2078,2423.8,2423.4,3.27962377]
[1750972898056,3.2078,2423.8,2423.5,0.82496]
[1750972898239,0.82494,2423.6,2423.4,1.3323]
[1750972898552,0.8249,2423.7,2423.5,0.82495]
[1750972898851,3.2078,2423.8,2423.7,0.8249]
[1750972899240,1.3635,2424.1,2424.0,0.82479]
[1750972899441,0.6844,2424.1,2424.0,0.82479]
[1750972899747,4.03239,2424.6,2424.4,0.82465]
[1750972899948,3.2078,2424.6,2424.5,0.82462]
[1750972900244,4.0324,2424.6,2424.4,0.82464]
[1750972900448,4.0324,2424.6,2424.5,0.82462]
[1750972900449,3.2078,2424.6,2424.5,0.82462]
[1750972902553,3.2078,2425.3,2425.0,0.82443]
[1750972902749,4.03217,2425.3,2425.1,0.82442]
[1750972902952,0.82439,2425.2,2425.0,0.82444]
[1750972903154,3.2078,2425.3,2424.7,4.6444]
[1750972903354,3.2078,2425.3,2425.1,0.82441]
[1750972903553,3.2078,2425.3,2425.2,0.82439]
[1750972904252,0.7231,2425.5,2424.9,2.06118]
[1750972904449,0.82473,2424.2,2423.9,0.82481]
[1750972904753,3.2078,2424.4,2423.8,1.4366]
[1750972904952,6.47683366,2424.2,2423.8,1.4366]
[1750972905147,0.82482,2424.0,2423.8,1.4366]
[1750972905348,11.82113366,2424.4,2423.8,1.4366]
[1750972905549,0.82483,2423.9,2423.8,1.4366]
[1750972905758,0.82481,2424.0,2423.8,1.4366]
[1750972905946,0.82483,2423.9,2423.8,1.4366]
[1750972906151,3.2078,2424.1,2423.8,1.4366]
[1750972906349,3.2078,2424.1,2423.4,1.4426]
[1750972906350,0.82496,2423.5,2423.4,7.693]
[1750972906751,0.82492,2423.7,2423.4,2.28828]
[1750972906956,0.825,2423.4,2423.3,3.2078]
[1750972907156,3.2078,2423.7,2423.0,3.2078]
[1750972907359,2.06242,2423.5,2423.0,3.2078]
[1750972907660,0.8251,2423.1,2423.0,3.2078]
[1750972907850,7.38287,2423.4,2422.6,5.49636]
[1750972908053,0.82524,2422.7,2422.6,3.2078]
[1750972908551,0.82531,2422.5,2422.3,3.27962377]
[1750972908861,0.82534,2422.4,2422.2,3.27962377]
[1750972909561,0.7245,2422.7,2422.1,3.2078]
[1750972909562,0.7245,2422.7,2422.1,6.48742377]
[1750972909754,0.82534,2422.4,2422.1,3.2078]
[1750972909955,2.1802,2422.7,2422.1,4.5451]
[1750972910356,2.1802,2422.7,2422.1,5.37054]
[1750972910558,0.8253,2422.6,2422.1,4.5451]
[1750972910766,2.1802,2422.7,2422.2,0.82539]
[1750972910767,0.82531,2422.5,2422.2,0.82539]
[1750972910958,0.7245,2422.7,2422.4,0.82532]
[1750972911161,1.54974,2422.7,2422.4,0.82532]
[1750972911356,0.82527,2422.6,2422.3,0.82536]
[1750972911563,0.7245,2422.7,2422.1,4.5451]
[1750972912064,0.7245,2422.7,2422.5,0.82529]
[1750972912467,3.2078,2422.8,2422.1,12.2411]
[1750972912766,0.82516,2423.0,2422.7,0.82522]
[1750972913658,12.41491,2423.1,2422.5,1.449]
[1750972913858,0.82519,2422.9,2422.5,2.27428]
[1750972914073,3.2078,2422.8,2422.4,3.2078]
[1750972914264,4.03302,2422.8,2422.4,0.82534]
[1750972914567,4.03302,2422.8,2422.4,0.82533]
[1750972914969,0.82524,2422.7,2422.4,0.82533]
[1750972915166,4.03302,2422.8,2422.5,0.8253]
[1750972915370,4.03302,2422.8,2422.4,0.82532]
[1750972915559,3.2078,2422.8,2422.1,3.2078]
[1750972915765,0.82524,2422.7,2422.3,0.82534]
[1750972915962,0.82524,2422.7,2422.3,0.82536]
[1750972916473,0.82533,2422.5,2422.1,11.73122]
[1750972916769,0.82539,2422.3,2422.1,3.2078]
[1750972916967,0.82541,2422.2,2422.1,3.2078]
[1750972917163,3.2078,2422.2,2421.5,4.67142377]
[1750972917368,0.8256,2421.7,2421.4,3.27962377]
[1750972917872,0.82562,2421.6,2421.4,3.27962377]
[1750972918164,8.3738,2421.8,2421.3,6.48742377]
[1750972918368,8.3738,2421.8,2421.4,3.27962377]
[1750972918568,0.82565,2421.5,2421.3,6.48742377]
[1750972918871,0.82565,2421.5,2421.3,3.2078]
[1750972919170,5.0,2421.5,2421.3,3.2078]
[1750972919367,5.0,2421.5,2420.8,4.0999392]
[1750972919368,0.82585,2420.9,2420.8,4.0999392]
[1750972919566,3.2078,2420.9,2420.7,4.0999392]
[1750972919871,0.82588,2420.8,2420.5,0.82598]
[1750972920071,0.82593,2420.7,2420.5,1.3918]
[1750972920270,3.2078,2421.3,2420.5,9.5996]
[1750972920471,3.2078,2421.3,2420.9,5.71649282]
[1750972920664,3.2078,2422.1,2421.1,3.2078]
[1750972920862,4.03316,2422.4,2421.7,3.2078]
[1750972921066,3.2078,2422.4,2421.8,9.15]
[1750972921263,0.6762,2422.8,2421.9,2.06378]
[1750972921569,3.9391,2423.1,2422.1,3.2078]
[1750972921765,3.2078,2423.7,2422.6,3.2078]
[1750972921967,5.57835819,2424.3,2423.2,3.2078]
[1750972922166,3.19531819,2424.1,2423.3,9.15]
[1750972922371,3.40111538,2424.0,2423.7,0.82488]
[1750972922677,1.03055719,2423.9,2423.6,7.636]
[1750972922876,3.40111538,2423.9,2423.6,7.636]
[1750972923073,3.40111538,2423.8,2423.7,1.45]
[1750972923376,2.37055819,2423.8,2423.7,2.2749]
[1750972923563,3.40111538,2423.8,2423.7,7.2749]
[1750972923767,1.03055719,2423.8,2423.7,7.2749]
[1750972923969,2.37055819,2423.9,2423.8,0.82486]
[1750972924169,2.37055819,2423.9,2423.8,5.45736]
[1750972924479,1.03070247,2423.9,2423.8,5.45736]
[1750972924674,2.39473803,2424.1,2424.0,0.82479]
[1750972925078,1.031192,2424.1,2423.9,0.82481]
[1750972925281,6.38244124,2424.3,2424.0,1.4247]
[1750972925570,4.20835615,2424.2,2424.0,1.4247]
[1750972925779,4.20835615,2424.2,2424.1,0.82476]
[1750972925971,1.03371491,2424.2,2424.0,9.0597]
[1750972926171,1.03371491,2424.1,2424.0,1.4247]
[1750972926367,1.03371491,2424.1,2423.8,3.2078]
[1750972926571,1.03371491,2424.1,2423.0,49.536]
[1750972926572,0.82486,2423.8,2423.6,1.3383]
[1750972926780,3.19479973,2423.8,2423.7,0.8249]
[1750972927074,4.22851464,2423.8,2423.7,0.8249]
[1750972927379,1.03371491,2423.8,2423.7,0.8249]
[1750972927876,1.03371491,2423.8,2423.7,9.0327]
[1750972928066,1.03371491,2423.8,2423.7,3.2078]
[1750972928272,1.03371491,2423.8,2423.7,10.8418]
[1750972928870,1.03371491,2423.8,2423.7,3.2078]
[1750972929277,1.85857491,2423.8,2423.7,3.2078]
[1750972929877,0.825,2423.5,2423.4,10.8418]
[1750972930279,1.85871491,2423.5,2423.4,10.8418]
[1750972930578,1.03371491,2423.5,2423.4,10.8418]
[1750972930779,1.85867491,2423.5,2423.4,10.8418]
[1750972930976,1.03371491,2423.5,2423.4,10.8418]
[1750972931374,1.85867491,2423.5,2423.4,10.8418]
[1750972931680,3.43044627,2423.5,2423.4,10.8418]
[1750972931876,1.85867491,2423.5,2423.4,10.8418]
[1750972932074,1.85867491,2423.5,2423.4,3.2078]
[1750972932279,0.82503,2423.3,2423.2,1.3383]
[1750972932483,3.45915,2423.9,2423.3,7.634]
[1750972932673,0.825,2423.4,2423.2,1.3383]
[1750972932876,0.825,2423.4,2423.3,7.634]
[1750972933376,1.397,2423.9,2423.3,7.634]
[1750972933377,0.82498,2423.5,2423.3,7.634]
[1750972933581,1.397,2423.9,2423.3,9.0775]
[1750972933781,0.82494,2423.6,2423.3,9.90253]
[1750972934176,0.82497,2423.5,2423.3,9.0775]
[1750972934485,1.397,2423.9,2423.3,9.0775]
[1750972934685,0.82495,2423.6,2423.3,9.90252]
[1750972934882,0.82497,2423.5,2423.3,9.0775]
[1750972935075,1.397,2423.9,2423.3,9.90252]
[1750972935385,0.82495,2423.6,2423.3,9.90253]
[1750972935576,1.397,2423.9,2423.3,9.90253]
[1750972935777,0.82498,2423.5,2423.3,9.90253]
[1750972936091,5.26988,2424.0,2423.3,9.0775]
[1750972936092,3.2078,2424.0,2423.3,9.0775]
[1750972936292,1.03551735,2423.9,2423.8,0.82486]
[1750972936583,4.03262,2424.0,2423.8,0.82486]
[1750972936773,3.2078,2424.0,2423.9,2.17663]
[1750972936970,4.24422361,2424.0,2423.9,2.17663]
[1750972938081,1.03642361,2424.0,2423.9,2.17663]
[1750972938282,3.2078,2424.4,2424.2,0.82471]
[1750972938484,3.2078,2424.4,2424.3,2.17649]
[1750972938778,4.24442227,2424.4,2424.3,2.17649]
[1750972939180,1.03662227,2424.4,2424.3,2.17649]
[1750972939380,5.60698441,2424.7,2424.6,0.82459]
[1750972939573,6.643265,2424.7,2424.6,0.82459]
[1750972939775,4.24408059,2424.7,2424.6,0.82459]
[1750972940283,1.03628059,2424.7,2424.6,0.82459]
[1750972940785,1.03628059,2424.7,2424.6,2.29389]
[1750972943600,1.03628059,2424.7,2424.2,32.31056]
[1750972943601,1.03628059,2424.7,2424.2,4.03251]
[1750972943783,0.82466,2424.5,2424.2,5.44891]
[1750972944089,0.82467,2424.4,2424.2,5.44891]
[1750972944281,4.55008441,2424.9,2424.5,0.82461]
[1750972944484,4.55008441,2424.9,2424.3,2.24107]
[1750972944781,4.55008441,2424.9,2424.3,1.4164]
[1750972944782,0.82454,2424.8,2424.3,1.4164]
[1750972944977,0.82452,2424.8,2424.5,0.8246]
[1750972945281,0.82456,2424.7,2424.5,0.8246]
[1750972945478,0.6922,2424.9,2424.3,1.4164]
[1750972945683,5.60698441,2425.0,2424.8,0.82452]
[1750972945684,6.43145441,2425.0,2424.8,0.82452]
[1750972945886,4.03227,2425.0,2424.8,0.82452]
[1750972946188,0.82449,2424.9,2424.7,0.82454]
[1750972946386,4.03228,2425.0,2424.8,0.82452]
[1750972947079,0.82449,2424.9,2424.7,0.82453]
[1750972947276,3.2078,2425.0,2424.6,1.4653]
[1750972947480,4.03226,2425.0,2424.8,0.8245]
[1750972947680,3.2078,2425.0,2424.9,0.82449]
[1750972949191,2.1379,2425.4,2425.0,0.82442]
[1750972949392,0.8244,2425.2,2425.0,0.82442]
[1750972949789,0.82435,2425.3,2425.1,0.82441]
[1750972950087,0.82444,2425.1,2424.9,0.82449]
[1750972950296,0.82444,2425.1,2424.8,1.4669]
[1750972950593,0.82444,2425.1,2424.9,0.82447]
[1750972951385,4.6742,2425.3,2424.6,7.631]
[1750972951685,0.82448,2425.0,2424.8,0.82451]
[1750972951891,0.82445,2425.1,2424.9,0.82449]
[1750972952390,0.82445,2425.0,2424.8,0.8245]
[1750972952782,3.2078,2425.3,2424.7,2.0614]
[1750972952985,3.2078,2425.3,2424.8,1.4186]
[1750972953387,0.82441,2425.2,2424.8,1.4186]
[1750972953584,0.82441,2425.2,2425.0,0.82445]
[1750972954489,3.2078,2425.3,2424.8,1.4186]
[1750972954691,3.2078,2425.3,2425.2,0.82439]
[1750972955090,4.03216,2425.3,2425.1,0.8244]
[1750972955495,3.2078,2425.3,2425.2,0.82439]
[1750972958895,3.2078,2425.6,2425.5,0.82428]
[1750972959792,4.75227,2425.9,2425.7,0.82421]
[1750972960188,3.9281,2425.9,2425.4,7.59]
[1750972960395,3.9281,2425.9,2425.5,1.4273]
[1750972960787,0.82424,2425.7,2425.5,2.25158]
[1750972961695,0.8242,2425.8,2425.5,1.4273]
[1750972961892,3.9281,2425.9,2425.5,1.4273]
[1750972962194,0.82422,2425.7,2425.6,0.82425]
[1750972962391,0.8242,2425.8,2425.6,0.82425]
[1750972962598,0.82422,2425.7,2425.6,0.82425]
[1750972963299,3.9281,2425.9,2425.6,0.82423]
[1750972963492,0.8242,2425.8,2425.6,0.82423]
[1750972963688,0.8242,2425.8,2425.7,0.82422]
[1750972964193,0.8242,2425.8,2425.5,1.4273]
[1750972964194,0.8242,2425.8,2425.6,0.82423]
[1750972964498,0.8242,2425.8,2425.7,0.82422]
[1750972964795,3.9281,2425.9,2425.8,0.82418]
[1750972964994,4.71458,2426.2,2425.6,2.06063]
[1750972965189,1.0319683,2426.1,2426.0,0.82408]
[1750972965696,3.8905,2426.2,2426.1,0.82408]
[1750972965697,3.2078,2426.2,2426.1,0.82408]
[1750972966995,3.2078,2426.5,2426.4,0.82398]
[1750972967797,0.82391,2426.6,2426.4,0.82398]
[1750972968099,3.8851,2426.8,2426.2,7.588]
[1750972968300,0.82388,2426.7,2426.4,0.82396]
[1750972968491,0.82388,2426.7,2426.5,0.82394]
[1750972968900,0.82391,2426.6,2426.4,0.82396]
[1750972969102,0.82389,2426.7,2426.5,2.25953]
[1750972969494,0.82391,2426.6,2426.5,1.4356]
[1750972970505,0.8239,2426.7,2426.5,2.25954]
[1750972971004,3.8851,2426.8,2426.5,2.25952]
[1750972971204,0.82391,2426.6,2426.5,1.4356]
[1750972971604,0.8239,2426.7,2426.5,2.25954]
[1750972972006,0.82388,2426.7,2426.5,2.25954]
[1750972972502,0.82391,2426.6,2426.5,2.25953]
[1750972972707,0.8239,2426.7,2426.5,2.25953]
[1750972973002,3.8851,2426.8,2426.5,2.25953]
[1750972973407,0.82388,2426.7,2426.5,2.25953]
[1750972973909,3.2078,2426.8,2426.5,1.4356]
[1750972974212,0.82391,2426.6,2426.5,9.84554]
[1750972974406,0.82391,2426.6,2426.5,2.25954]
[1750972974706,0.8239,2426.7,2426.6,0.82391]
[1750972976203,3.2078,2426.8,2426.7,0.82388]
[1750972979017,0.82378,2427.0,2426.9,0.82381]
[1750972979497,0.82378,2427.0,2426.8,0.82382]
[1750972979701,0.82378,2427.0,2426.9,0.82381]
[1750972979902,0.82381,2426.9,2426.7,0.82386]
[1750972980108,0.82381,2426.9,2426.8,1.3887]
[1750972980305,0.8238,2427.0,2426.8,2.21254]
[1750972980606,3.2078,2427.1,2426.5,0.82391]
[1750972980607,0.8239,2426.7,2426.5,0.82391]
[1750972980810,0.82383,2426.9,2426.6,7.585]
[1750972981010,0.82384,2426.8,2426.6,8.40889]
[1750972981204,0.82384,2426.8,2426.4,0.6854]
[1750972981205,3.2078,2426.8,2426.3,0.82401]
[1750972981507,5.26742,2426.8,2426.3,7.585]
[1750972981814,0.824,2426.4,2426.3,7.585]
[1750972982011,0.7146,2426.7,2426.1,1.3437]
[1750972982212,0.824,2426.4,2426.2,7.585]
[1750972982514,0.824,2426.4,2426.2,8.40904]
[1750972983309,0.82401,2426.4,2426.2,8.40904]
[1750972983705,0.82401,2426.4,2426.2,8.40902]
[1750972983906,0.82401,2426.4,2426.2,0.82402]
[1750972984105,2.164,2426.3,2425.9,7.534]
[1750972984419,2.98804,2426.3,2426.0,0.82411]
[1750972984606,0.82405,2426.2,2426.0,0.82411]
[1750972984909,2.98803,2426.3,2426.1,0.82408]
[1750972985109,2.164,2426.3,2425.7,3.2078]
[1750972985303,0.82411,2426.1,2425.8,9.77777]
[1750972985505,0.7231,2426.3,2425.9,0.82413]
[1750972985707,0.82409,2426.1,2425.9,0.82413]
[1750972986001,2.06021,2426.1,2425.6,0.82424]
[1750972986202,0.8242,2425.8,2425.6,0.82424]
[1750972986411,3.2078,2425.9,2425.5,0.82426]
[1750972986602,3.2078,2425.6,2425.1,3.2078]
[1750972987006,0.8244,2425.2,2424.9,0.82446]
[1750972987201,0.8244,2425.2,2424.9,8.35846]
[1750972987405,0.82445,2425.0,2424.9,7.534]
[1750972987606,0.82445,2425.1,2424.9,7.534]
[1750972987814,0.82446,2425.0,2424.7,0.82454]
[1750972988009,0.82446,2425.0,2424.8,0.82452]
[1750972988316,0.82446,2425.0,2424.8,0.82451]
[1750972988515,0.82446,2425.0,2424.8,8.35951]
[1750972988813,0.82444,2425.1,2424.8,8.35951]
[1750972989013,0.82444,2425.1,2424.8,0.82451]
[1750972989208,0.8245,2424.9,2424.6,0.82456]
[1750972989408,0.82445,2425.1,2424.8,0.82451]
[1750972990405,0.82446,2425.0,2424.8,0.82451]
[1750972990609,0.82444,2425.1,2424.8,0.82451]
[1750972991109,0.82437,2425.3,2425.0,0.82444]
[1750972991314,1.53054,2425.4,2425.1,0.82442]
[1750972992213,1.53054,2425.4,2425.2,0.82438]
[1750972992516,1.53054,2425.4,2425.1,0.8244]
[1750972992913,0.7062,2425.4,2425.2,0.82438]
[1750972993111,0.7062,2425.4,2424.9,1.3921]
[1750972993419,0.7062,2425.4,2425.2,0.82439]
[1750972994308,0.7062,2425.4,2425.3,0.82435]
[1750972994719,0.7062,2425.4,2425.2,0.82437]
[1750972995415,0.7062,2425.4,2425.1,1.4655]
[1750972995718,1.53052,2425.4,2425.2,0.82435]
[1750972995921,1.53052,2425.4,2425.1,9.8269]
[1750972996123,1.53052,2425.4,2425.2,0.82439]
[1750972996308,1.53052,2425.4,2425.3,0.82435]
[1750972997025,0.7062,2425.4,2425.3,0.82435]
[1750972997621,3.2078,2425.6,2425.5,0.82428]
[1750972998323,3.2078,2426.3,2426.1,0.82408]
[1750972998526,1.03552683,2426.2,2426.1,0.82408]
[1750972998720,3.2078,2426.3,2426.2,0.82405]
[1750973000014,3.2078,2426.3,2426.1,0.82405]
[1750973000212,3.2078,2426.3,2426.2,0.82405]
[1750973003722,4.03169,2426.7,2426.5,0.82392]
[1750973004026,1.03485982,2426.6,2426.5,0.82392]
[1750973004226,3.2078,2426.7,2426.6,0.82391]
[1750973004420,4.24241117,2426.7,2426.6,0.82391]
[1750973005127,1.4384,2427.0,2426.4,10.7438]
[1750973005320,1.4384,2427.0,2426.9,0.82381]
[1750973005519,2.4732044,2427.0,2426.9,0.82381]
[1750973005719,3.2969844,2427.0,2426.9,0.82381]
[1750973007727,2.4732044,2427.0,2426.9,0.82381]
[1750973008328,1.0348044,2427.0,2426.9,0.82381]
[1750973010220,1.0348044,2427.0,2426.9,2.18521]
[1750973012922,3.2078,2427.6,2426.9,12.84140394]
[1750973013225,3.19479973,2428.0,2427.3,3.2078]
[1750973013226,2.39918441,2427.9,2427.3,3.2078]
[1750973013432,2.39918441,2427.9,2426.8,7.534]
[1750973013433,6.48000394,2427.5,2426.8,7.534]
[1750973013734,0.82376,2427.1,2426.8,7.534]
[1750973013927,0.82373,2427.2,2426.6,4.5623]
[1750973014232,0.82377,2427.1,2426.9,0.82379]
[1750973014434,0.82377,2427.1,2427.0,0.82378]
[1750973015328,0.82377,2427.1,2426.9,0.82379]
[1750973015530,0.82378,2427.0,2426.9,0.82379]
[1750973015733,0.82375,2427.1,2426.8,1.3758]
[1750973015932,9.68780394,2427.3,2426.6,3.2078]
[1750973016122,7.81370394,2427.0,2426.6,3.2078]
[1750973016330,0.82388,2426.7,2426.5,0.82393]
[1750973016630,0.82391,2426.6,2426.5,0.82393]
[1750973016830,0.82395,2426.5,2426.4,2.19977]
[1750973017031,0.82393,2426.6,2426.4,2.19977]
[1750973017632,0.82393,2426.6,2426.5,0.82395]
[1750973017834,0.82393,2426.6,2426.4,2.19975]
[1750973018641,11.02150394,2427.0,2426.4,1.3758]
[1750973018839,0.82389,2426.7,2426.4,1.3758]
[1750973019137,0.82389,2426.7,2426.5,0.82393]
[1750973019434,5.26702,2427.3,2426.4,1.3758]
[1750973019629,3.2078,2427.3,2426.6,3.2078]
[1750973019834,0.82381,2426.9,2426.8,0.82383]
[1750973020832,0.82381,2426.9,2426.3,10.6858]
[1750973020833,2.05953,2426.9,2426.3,10.6858]
[1750973021136,0.82397,2426.5,2426.3,8.302]
[1750973021334,0.82398,2426.4,2426.3,8.302]
[1750973021632,0.82401,2426.3,2426.2,0.82405]
[1750973021836,0.82398,2426.4,2426.3,7.478]
[1750973022235,0.82401,2426.4,2426.2,0.82403]
[1750973022539,3.2078,2427.3,2426.5,2.05982]
[1750973022736,0.82372,2427.2,2426.7,5.26746]
[1750973023029,5.26706,2427.3,2426.7,0.82387]
[1750973023236,0.82388,2426.7,2426.6,7.478]
[1750973023540,0.82395,2426.5,2426.4,3.2078]
[1750973024736,2.26815,2426.5,2426.4,3.2078]
[1750973025939,0.82401,2426.3,2426.2,0.82402]
[1750973026234,0.82402,2426.3,2426.1,8.30206]
[1750973026436,3.2078,2426.2,2425.6,0.6903]
[1750973026639,4.6099,2426.2,2425.6,0.82424]
[1750973026834,0.7065,2426.1,2425.3,12.09738314]
[1750973027141,0.82424,2425.7,2425.4,0.82431]
[1750973027633,0.82429,2425.5,2425.3,1.3467]
[1750973027838,0.8243,2425.5,2425.3,1.3467]
[1750973028037,0.8243,2425.5,2425.3,2.17105]
[1750973028638,0.82432,2425.4,2425.1,50.28039]
[1750973028833,0.82432,2425.4,2425.2,8.30337]
[1750973029036,2.06055,2425.7,2425.1,50.8027]
[1750973029234,3.2078,2425.5,2424.8,7.479]
[1750973029538,3.2078,2425.5,2424.9,0.82449]
[1750973029539,0.82441,2425.2,2424.9,0.82449]
[1750973030230,0.82443,2425.1,2424.8,8.30351]
[1750973030630,4.0322,2425.2,2424.9,0.82448]
[1750973031338,0.82437,2425.3,2425.1,0.82442]
[1750973031640,0.82437,2425.3,2425.0,0.82444]
[1750973032137,0.82439,2425.2,2424.9,0.82447]
[1750973032638,0.82439,2425.2,2425.0,0.82445]
[1750973032833,3.2078,2425.2,2424.7,0.82454]
[1750973033034,0.8245,2424.9,2424.6,0.82458]
[1750973033442,0.82447,2425.0,2424.6,0.82458]
[1750973033739,0.82447,2425.0,2424.6,2.26288]
[1750973034041,0.82449,2424.9,2424.6,2.26288]
[1750973034542,0.82448,2425.0,2424.7,0.82453]
[1750973035939,0.82448,2425.0,2424.6,2.26287]
[1750973036239,0.8245,2424.9,2424.7,0.82455]
[1750973036743,0.82447,2425.0,2424.7,0.82455]
[1750973037545,0.8245,2424.9,2424.7,0.82455]
[1750973038041,3.2078,2425.2,2425.1,0.82442]
[1750973038645,3.2078,2425.6,2425.1,6.4508]
[1750973038842,0.82423,2425.7,2425.4,0.82431]
[1750973039038,1.02914642,2425.6,2425.5,2.27508]
[1750973039250,0.82422,2425.7,2425.5,1.4508]
[1750973039536,0.82425,2425.6,2425.5,1.4508]
[1750973039742,0.8242,2425.8,2425.5,2.27505]
[1750973040248,0.8242,2425.8,2425.6,0.82425]
[1750973040440,4.03197,2425.9,2425.7,2.27502]
[1750973040640,4.03197,2425.9,2425.8,1.4508]
[1750973040840,4.23669726,2425.9,2425.8,1.4508]
[1750973041043,4.23669726,2425.9,2425.8,2.27498]
[1750973041439,4.23669726,2425.9,2425.8,1.4508]
[1750973041744,0.82407,2426.2,2426.0,0.82411]
[1750973041944,1.02849889,2426.1,2426.0,0.82411]
[1750973042736,1.02849889,2426.1,2426.0,2.26081]
[1750973042944,1.02849889,2426.1,2426.0,1.4367]
[1750973043646,1.85257889,2426.1,2426.0,1.4367]
[1750973043944,1.85257889,2426.1,2425.2,51.54091]
[1750973043945,0.82422,2425.7,2425.6,3.2078]
[1750973044145,0.82428,2425.5,2425.4,8.16]
[1750973044344,0.82428,2425.5,2425.4,2.1147]
[1750973044546,0.82428,2425.5,2425.4,9.5497]
[1750973044752,0.82428,2425.5,2425.4,2.1147]
[1750973045240,0.82427,2425.6,2425.4,2.261]
[1750973045437,0.82428,2425.5,2425.4,1.4367]
[1750973045634,0.82437,2425.3,2425.1,2.2229]
[1750973045840,0.82437,2425.3,2425.2,1.4265]
[1750973046249,5.26833,2425.8,2425.1,7.434]
[1750973046442,0.82442,2425.1,2425.0,11.46625]
[1750973047340,0.8244,2425.2,2425.1,0.82442]
[1750973047543,0.8244,2425.2,2425.1,1.4265]
[1750973048946,0.82442,2425.1,2425.0,10.6428]